[Event "Athens of East Open 2019"]
[Site "Madurai"]
[Date "2019.08.11"]
[Round "4.3"]
[White "Tejaswini G"]
[Black "Venkatakrishnan, R.V."]
[Result "0-1"]
[ECO "A40"]
[WhiteElo "1451"]
[BlackElo "1702"]
[Annotator "NA"]
[PlyCount "104"]
[EventDate "2019.08.10"]
[EventType "swiss"]
[EventCountry "IND"]
[SourceTitle "playchess.com"]
[Source "ChessBase"]
[SourceQuality "1"]
[TimeControl "3600+30"]

1. d4 {[%emt 0:00:00]} e6 {[%emt 0:00:00]} 2. Bf4 {[%emt 0:00:28]} d5 3. e3 {[%emt 0:00:18]} c5 {[%emt 0:01:34]} 4. c3 {[%emt 0:00:27]} Qb6 {[%emt 0:01:11]} 5. b3 Nc6 {[%emt 0:02:34]} 6. Nf3 {[%emt 0:04:08]} Nf6 {[%emt 0:00:36]} 7. Nbd2 {[%emt 0:02:56]} Bd7 {[%emt 0:04:10]} 8. a3 {[%emt 0:07:50]} cxd4 {[%emt 0:05:24]} 9. exd4 {[%emt 0:00:16]} Rc8 {[%emt 0:00:56]} 10. b4 {[%emt 0:05:36]} a6 {[%emt 0:11:59]} 11. Qb3 {[%emt 0:13:18]} Be7 {[%emt 0:14:22]} 12. h3 {[%emt 0:02:28]} O-O {[%emt 0:01:07]} 13. Bd3 {[%emt 0:00:26]} Ra8 {[%emt 0:05:32]} 14. a4 {[%emt 0:01:53]} h6 {[%emt 0:03:01]} 15. O-O {[%emt 0:01:35]} Qd8 {[%emt 0:02:06]} 16. Qd1 Nh7 17. Nb3 {[%emt 0:05:37]} Ng5 {[%emt 0:02:16]} 18. Re1 {[%emt 0:02:48]} Nxf3+ {[%emt 0:00:17]} 19. Qxf3 {[%emt 0:00:06]} b6 20. Qg3 {[%emt 0:00:50]} Bh4 {[%emt 0:02:09]} 21. Qf3 {[%emt 0:00:46]} Bg5 {[%emt 0:00:50]} 22. Bd6 {[%emt 0:00:49]} Be7 {[%emt 0:00:41]} 23. Bg3 {[%emt 0:00:37]} Bh4 {[%emt 0:02:12]} 24. Bd6 {[%emt 0:01:09]} Re8 {[%emt 0:01:24]} 25. Qf4 {[%emt 0:01:11]} Qf6 {[%emt 0:00:54]} 26. Qxf6 {[%emt 0:00:21]} Bxf6 {[%emt 0:00:02]} 27. b5 {[%emt 0:02:10]} axb5 {[%emt 0:00:48]} 28. Bxb5 {[%emt 0:01:46]} Rec8 {[%emt 0:01:05]} 29. f4 g6 {[%emt 0:00:53]} 30. Rec1 {[%emt 0:04:27]} Be8 {[%emt 0:00:19]} 31. Kh2 {[%emt 0:02:07]} Na5 {[%emt 0:01:44]} 32. Nxa5 {[%emt 0:00:29]} Rxa5 {[%emt 0:00:39]} 33. Bxe8 {[%emt 0:00:56]} Rxe8 {[%emt 0:00:01]} 34. Rcb1 {[%emt 0:00:19]} Ra6 {[%emt 0:04:20]} 35. Bc7 {[%emt 0:00:50]} Bd8 {[%emt 0:00:21]} 36. Bd6 {[%emt 0:00:30]} b5 {[%emt 0:01:26]} 37. axb5 {[%emt 0:00:24]} Rxd6 {[%emt 0:00:01]} 38. Ra6 {[%emt 0:00:29]} Rb6 {[%emt 0:00:47]} 39. Kg1 {[%emt 0:00:48]} Bc7 {[%emt 0:00:07]} 40. Ra7 {[%emt 0:00:39]} Bxf4 {[%emt 0:00:09]} 41. Kf2 {[%emt 0:00:26]} Reb8 {[%emt 0:00:18]} 42. Ra5 {[%emt 0:00:28]} e5 {[%emt 0:00:19]} 43. Ke2 {[%emt 0:01:01]} Kf8 {[%emt 0:00:36]} 44. Kd3 {[%emt 0:00:42]} e4+ {[%emt 0:00:20]} 45. Ke2 {[%emt 0:00:04]} Bc7 {[%emt 0:00:17]} 46. Ra7 {[%emt 0:00:51]} R6b7 {[%emt 0:00:47]} 47. Rxb7 {[%emt 0:00:29]} Rxb7 {[%emt 0:00:01]} 48. Rb4 {[%emt 0:00:16]} Ba5 {[%emt 0:00:12]} 49. Rb3 {[%emt 0:00:07]} Ke7 {[%emt 0:00:27]} 50. Ke3 {[%emt 0:00:46]} Kd6 {[%emt 0:00:19]} 51. Kd2 {[%emt 0:00:34]} Kc7 {[%emt 0:00:08]} 52. Kc2 {[%emt 0:00:22]} Kb6 {[%emt 0:00:06]} 0-1

[Event "Athens of East Open 2019"]
[Site "Madurai"]
[Date "2019.08.11"]
[Round "4.4"]
[White "Kalbande Mayur"]
[Black "Chourasiya Hemant"]
[Result "1/2-1/2"]
[ECO "B01"]
[WhiteElo "1614"]
[BlackElo "1556"]
[Annotator "NA"]
[PlyCount "91"]
[EventDate "2019.08.10"]
[EventType "swiss"]
[EventCountry "IND"]
[SourceTitle "playchess.com"]
[Source "ChessBase"]
[SourceQuality "1"]
[TimeControl "3600+30"]

1. e4 {[%emt 0:00:00]} d5 {[%emt 0:03:21]} 2. exd5 {[%emt 0:00:00]} Qxd5 {[%emt 0:00:06]} 3. Nc3 {[%emt 0:00:00]} Qe5+ {[%emt 0:00:16]} 4. Be2 {[%emt 0:02:59]} Bg4 {[%emt 0:00:18]} 5. d4 {[%emt 0:00:48]} Qe6 {[%emt 0:00:51]} 6. Be3 {[%emt 0:00:23]} Bxe2 {[%emt 0:00:41]} 7. Ngxe2 {[%emt 0:02:22]} Nf6 {[%emt 0:00:25]} 8. O-O {[%emt 0:02:45]} Na6 {[%emt 0:00:20]} 9. a3 {[%emt 0:04:20]} Qd7 {[%emt 0:00:58]} 10. b4 {[%emt 0:01:02]} c6 {[%emt 0:00:10]} 11. Qd3 {[%emt 0:04:57]} e6 {[%emt 0:01:27]} 12. f4 {[%emt 0:03:37]} Bd6 {[%emt 0:00:39]} 13. Ng3 {[%emt 0:01:29]} g6 {[%emt 0:01:57]} 14. Nce4 {[%emt 0:02:39]} Nxe4 {[%emt 0:01:44]} 15. Nxe4 {[%emt 0:01:28]} Be7 {[%emt 0:00:07]} 16. Nd2 {[%emt 0:03:31]} b5 {[%emt 0:01:04]} 17. c4 {[%emt 0:02:35]} Nc7 {[%emt 0:00:39]} 18. cxb5 {[%emt 0:01:15]} cxb5 {[%emt 0:00:26]} 19. Nf3 {[%emt 0:01:37]} f6 {[%emt 0:02:58]} 20. Nd2 {[%emt 0:03:01]} Nd5 {[%emt 0:01:18]} 21. Nb3 {[%emt 0:00:16]} O-O {[%emt 0:02:44]} 22. Nc5 {[%emt 0:00:44]} Bxc5 {[%emt 0:00:46]} 23. dxc5 {[%emt 0:00:41]} Rad8 {[%emt 0:01:54]} 24. Rad1 {[%emt 0:01:06]} Qc6 {[%emt 0:02:00]} 25. Qe4 {[%emt 0:03:27]} Ne7 {[%emt 0:05:32]} 26. Qxc6 {[%emt 0:00:42]} Nxc6 {[%emt 0:00:15]} 27. Rd6 {[%emt 0:00:28]} Rxd6 {[%emt 0:01:35]} 28. cxd6 {[%emt 0:00:05]} Rd8 {[%emt 0:00:06]} 29. Rd1 {[%emt 0:02:34]} Rd7 {[%emt 0:00:05]} 30. Kf2 {[%emt 0:00:53]} e5 {[%emt 0:00:10]} 31. fxe5 {[%emt 0:00:45]} fxe5 {[%emt 0:00:02]} 32. Rd5 {[%emt 0:01:22]} a6 {[%emt 0:00:05]} 33. Bb6 {[%emt 0:00:51]} Kf7 {[%emt 0:00:16]} 34. Bc7 {[%emt 0:00:25]} Ke6 {[%emt 0:02:28]} 35. Rc5 {[%emt 0:00:47]} Nd8 {[%emt 0:00:20]} 36. Ke3 {[%emt 0:00:37]} Nf7 {[%emt 0:01:27]} 37. Ke4 {[%emt 0:03:44]} Ng5+ {[%emt 0:03:46]} 38. Ke3 {[%emt 0:02:23]} Nf7 {[%emt 0:01:22]} 39. Ke4 {[%emt 0:00:34]} Ng5+ {[%emt 0:00:10]} 40. Ke3 {[%emt 0:00:35]} Nf7 41. Rc6 Nxd6 42. Bb8 Kd5 43. Rxa6 Nc4+ 44. Ke2 Ke4 45. Kf1 Rd2 46. Bc7 1/2-1/2

[Event "Athens of East Open 2019"]
[Site "Madurai"]
[Date "2019.08.11"]
[Round "4.5"]
[White "Raghunandan Rohit"]
[Black "Sanil S"]
[Result "0-1"]
[ECO "D08"]
[WhiteElo "1610"]
[BlackElo "1462"]
[Annotator "NA RC"]
[PlyCount "25"]
[EventDate "2019.08.10"]
[EventType "swiss"]
[EventCountry "IND"]
[SourceTitle "playchess.com"]
[Source "ChessBase"]
[SourceQuality "1"]
[TimeControl "3600+30"]

1. d4 {[%emt 0:00:00]} d5 {[%emt 0:02:01]} 2. c4 {[%emt 0:00:06]} e5 {[%emt 0:00:29]} 3. e3 {[%emt 0:00:00]} dxc4 {[%emt 0:00:31]} 4. Bxc4 {[%emt 0:00:13]} exd4 5. exd4 {[%emt 0:00:30]} Nf6 {[%emt 0:03:35]} 6. Nf3 {[%emt 0:00:00]} Bb4+ {[%emt 0:00:20]} 7. Nc3 O-O {[%emt 0:00:56]} 8. O-O {[%emt 0:00:21]} Bg4 {[%emt 0:00:39]} 9. a3 {[%emt 0:01:39]} Ba5 {[%emt 0:01:35]} 10. Bg5 {[%emt 0:00:13]} h6 {[%emt 0:08:56]} 11. Bh4 {[%emt 0:04:01]} Nc6 {[%emt 0:01:35]} 12. d5 {[%emt 0:04:42]} Ne5 13. Ba2 0-1

[Event "Athens of East Open 2019"]
[Site "Madurai"]
[Date "2019.08.11"]
[Round "5.1"]
[White "Venkatakrishnan, R.V."]
[Black "Phani Kanuri"]
[Result "0-1"]
[ECO "A45"]
[WhiteElo "1702"]
[BlackElo "1471"]
[Annotator "NA"]
[PlyCount "86"]
[EventDate "2019.08.10"]
[EventType "swiss"]
[EventCountry "IND"]
[SourceTitle "playchess.com"]
[Source "ChessBase"]
[SourceQuality "1"]
[TimeControl "3600+30"]

1. d4 {[%emt 0:00:00]} Nf6 {[%emt 0:03:03]} 2. Bf4 {[%emt 0:00:00]} g6 {[%emt 0:00:05]} 3. e3 {[%emt 0:00:00]} Bg7 {[%emt 0:00:05]} 4. Nf3 {[%emt 0:00:00]} d6 {[%emt 0:00:04]} 5. c3 {[%emt 0:00:29]} O-O {[%emt 0:00:06]} 6. Bc4 {[%emt 0:01:29]} a6 {[%emt 0:03:04]} 7. a4 {[%emt 0:00:24]} c6 {[%emt 0:03:25]} 8. Nbd2 {[%emt 0:02:14]} Nbd7 {[%emt 0:01:17]} 9. e4 {[%emt 0:09:30]} Qc7 10. h3 {[%emt 0:09:57]} e5 {[%emt 0:09:44]} 11. dxe5 {[%emt 0:01:56]} dxe5 {[%emt 0:00:01]} 12. Be3 {[%emt 0:00:54]} b6 {[%emt 0:02:44]} 13. Ng5 {[%emt 0:09:45]} Ne8 {[%emt 0:07:33]} 14. O-O h6 15. Nxf7 {[%emt 0:12:10]} Rxf7 {[%emt 0:02:59]} 16. Bxf7+ {[%emt 0:00:19]} Kxf7 {[%emt 0:00:01]} 17. f4 {[%emt 0:00:12]} Kg8 18. fxe5 {[%emt 0:01:42]} Nxe5 {[%emt 0:06:32]} 19. Qb3+ {[%emt 0:00:52]} Kh7 {[%emt 0:01:24]} 20. Bxb6 Qe7 {[%emt 0:01:53]} 21. Bd4 {[%emt 0:03:48]} Be6 {[%emt 0:02:58]} 22. Qb6 {[%emt 0:02:42]} Qd7 23. Bxe5 {[%emt 0:06:15]} Bxe5 {[%emt 0:07:01]} 24. Nf3 {[%emt 0:00:19]} Bc7 {[%emt 0:00:46]} 25. Qf2 {[%emt 0:00:58]} Rb8 {[%emt 0:02:10]} 26. Nd4 {[%emt 0:01:58]} Qd6 27. g4 {[%emt 0:01:42]} Bc4 {[%emt 0:09:33]} 28. Rfd1 {[%emt 0:00:15]} Bb6 {[%emt 0:03:37]} 29. a5 {[%emt 0:00:32]} Bc5 {[%emt 0:00:33]} 30. b4 {[%emt 0:00:17]} Ba7 {[%emt 0:00:02]} 31. Kg2 {[%emt 0:00:43]} Qc7 {[%emt 0:01:01]} 32. Qg3 {[%emt 0:00:47]} Qc8 {[%emt 0:01:04]} 33. Qe5 {[%emt 0:01:58]} Rb7 {[%emt 0:00:43]} 34. Rab1 {[%emt 0:00:59]} Rf7 {[%emt 0:00:30]} 35. Qg3 {[%emt 0:01:04]} Bb8 {[%emt 0:00:58]} 36. e5 Nf6 {[%emt 0:00:48]} 37. Qe1 {[%emt 0:01:01]} Bd5+ {[%emt 0:00:29]} 38. Kg1 {[%emt 0:00:21]} Nxg4 {[%emt 0:00:53]} 39. c4 {[%emt 0:01:08]} Bxc4 {[%emt 0:01:14]} 40. hxg4 {[%emt 0:00:12]} Qxg4+ {[%emt 0:00:05]} 41. Kh2 {[%emt 0:00:29]} Qh5+ {[%emt 0:00:17]} 42. Kg1 {[%emt 0:00:31]} Bxe5 {[%emt 0:00:11]} 43. Qd2 {[%emt 0:00:18]} Bd5 {[%emt 0:00:21]} 0-1

[Event "Athens of East Open 2019"]
[Site "Madurai"]
[Date "2019.08.11"]
[Round "5.2"]
[White "Karuppasamy C"]
[Black "Ragesh Sarma.M"]
[Result "0-1"]
[ECO "A01"]
[WhiteElo "1394"]
[BlackElo "1583"]
[Annotator "NA"]
[PlyCount "96"]
[EventDate "2019.08.10"]
[EventType "swiss"]
[EventCountry "IND"]
[SourceTitle "playchess.com"]
[Source "ChessBase"]
[SourceQuality "1"]
[TimeControl "3600+30"]

1. b3 {[%emt 0:00:10]} d5 {[%emt 0:00:44]} 2. Bb2 {[%emt 0:00:11]} Bf5 {[%emt 0:01:02]} 3. e3 {[%emt 0:01:26]} e6 {[%emt 0:01:15]} 4. Nf3 {[%emt 0:01:53]} Nf6 {[%emt 0:00:37]} 5. a3 {[%emt 0:01:22]} Be7 {[%emt 0:00:12]} 6. h3 {[%emt 0:02:55]} Nbd7 {[%emt 0:00:27]} 7. g3 {[%emt 0:01:10]} h6 {[%emt 0:01:55]} 8. Bg2 {[%emt 0:00:09]} c6 {[%emt 0:00:06]} 9. d3 {[%emt 0:00:08]} Qc7 {[%emt 0:01:35]} 10. Nbd2 {[%emt 0:05:59]} e5 {[%emt 0:06:00]} 11. Qe2 {[%emt 0:01:34]} Be6 {[%emt 0:05:48]} 12. c4 {[%emt 0:06:54]} O-O {[%emt 0:04:06]} 13. O-O {[%emt 0:00:46]} Rfd8 {[%emt 0:01:35]} 14. Rac1 {[%emt 0:01:22]} Rac8 {[%emt 0:03:16]} 15. Rfd1 {[%emt 0:10:22]} Qb8 {[%emt 0:02:46]} 16. Nf1 {[%emt 0:05:25]} Bd6 {[%emt 0:02:51]} 17. N3d2 {[%emt 0:05:12]} Re8 {[%emt 0:02:47]} 18. e4 {[%emt 0:01:24]} d4 {[%emt 0:06:03]} 19. Rc2 {[%emt 0:02:13]} b5 {[%emt 0:04:21]} 20. g4 {[%emt 0:03:33]} bxc4 {[%emt 0:04:53]} 21. bxc4 {[%emt 0:00:17]} c5 {[%emt 0:01:28]} 22. Ng3 {[%emt 0:01:40]} Nf8 {[%emt 0:00:59]} 23. Nf5 {[%emt 0:01:45]} Ng6 {[%emt 0:00:08]} 24. Bc1 {[%emt 0:02:50]} Nf4 {[%emt 0:01:20]} 25. Qf3 {[%emt 0:00:24]} Nh7 {[%emt 0:00:42]} 26. h4 {[%emt 0:04:53]} Be7 {[%emt 0:06:41]} 27. Nxe7+ {[%emt 0:04:56]} Rxe7 {[%emt 0:00:02]} 28. Nf1 {[%emt 0:00:13]} Nf6 {[%emt 0:02:26]} 29. Nh2 {[%emt 0:01:00]} Ng6 {[%emt 0:04:00]} 30. Qg3 {[%emt 0:01:17]} Rb7 {[%emt 0:01:09]} 31. h5 {[%emt 0:00:51]} Nf4 {[%emt 0:01:58]} 32. Bxf4 {[%emt 0:00:45]} exf4 {[%emt 0:00:02]} 33. Qf3 {[%emt 0:00:09]} Qe5 {[%emt 0:00:12]} 34. Bh3 {[%emt 0:01:13]} Rcb8 {[%emt 0:00:36]} 35. Rdd2 {[%emt 0:00:28]} Rb3 {[%emt 0:00:27]} 36. Qe2 {[%emt 0:00:31]} Rxa3 {[%emt 0:00:33]} 37. Ra2 {[%emt 0:00:30]} Rxa2 {[%emt 0:01:02]} 38. Rxa2 {[%emt 0:00:08]} Qc7 {[%emt 0:00:03]} 39. Ra3 {[%emt 0:01:00]} Nxh5 {[%emt 0:00:39]} 40. gxh5 {[%emt 0:00:28]} Bxh3 {[%emt 0:00:02]} 41. Qa2 {[%emt 0:00:12]} Rb7 {[%emt 0:00:58]} 42. Nf3 {[%emt 0:00:07]} Qd7 {[%emt 0:00:35]} 43. Ne1 {[%emt 0:01:13]} Qg4+ {[%emt 0:01:11]} 44. Kh2 {[%emt 0:00:02]} Qxh5 {[%emt 0:00:07]} 45. f3 {[%emt 0:00:23]} Bg4+ {[%emt 0:00:38]} 46. Kg2 {[%emt 0:00:15]} Qh3+ {[%emt 0:00:02]} 47. Kf2 {[%emt 0:00:34]} Qh2+ {[%emt 0:00:17]} 48. Ng2 {[%emt 0:00:34]} Bh3 {[%emt 0:00:06]} 0-1

[Event "Athens of East Open 2019"]
[Site "Madurai"]
[Date "2019.08.11"]
[Round "5.3"]
[White "Adithya Ramesh"]
[Black "Emmanuel Thomas"]
[Result "1-0"]
[ECO "B90"]
[WhiteElo "1579"]
[BlackElo "1435"]
[Annotator "NA"]
[PlyCount "55"]
[EventDate "2019.08.10"]
[EventType "swiss"]
[EventCountry "IND"]
[SourceTitle "playchess.com"]
[Source "ChessBase"]
[SourceQuality "1"]
[TimeControl "3600+30"]

1. e4 c5 {[%emt 0:00:00]} 2. Nf3 {[%emt 0:00:00]} d6 {[%emt 0:00:00]} 3. d4 {[%emt 0:00:00]} cxd4 {[%emt 0:00:00]} 4. Nxd4 {[%emt 0:00:00]} Nf6 {[%emt 0:00:00]} 5. Nc3 {[%emt 0:00:00]} a6 {[%emt 0:00:00]} 6. Be3 {[%emt 0:00:09]} e6 {[%emt 0:00:10]} 7. f3 {[%emt 0:00:05]} Nc6 {[%emt 0:00:26]} 8. Qd2 {[%emt 0:00:06]} Be7 {[%emt 0:00:22]} 9. O-O-O {[%emt 0:00:09]} O-O {[%emt 0:00:17]} 10. g4 {[%emt 0:00:05]} Nxd4 {[%emt 0:00:42]} 11. Bxd4 {[%emt 0:00:06]} e5 {[%emt 0:00:42]} 12. Be3 {[%emt 0:00:21]} Be6 {[%emt 0:00:23]} 13. h4 {[%emt 0:00:53]} Rc8 {[%emt 0:00:39]} 14. h5 {[%emt 0:00:56]} b5 {[%emt 0:03:34]} 15. g5 {[%emt 0:00:42]} Nd7 {[%emt 0:01:26]} 16. g6 {[%emt 0:00:35]} fxg6 {[%emt 0:03:40]} 17. hxg6 {[%emt 0:00:08]} hxg6 {[%emt 0:01:33]} 18. Bh3 Bxh3 {[%emt 0:05:04]} 19. Qd5+ {[%emt 0:03:54]} Rf7 {[%emt 0:02:01]} 20. Rxh3 {[%emt 0:01:00]} Nf6 21. Rdh1 {[%emt 0:01:05]} Kf8 {[%emt 0:07:06]} 22. Rh8+ {[%emt 0:00:49]} Ng8 {[%emt 0:00:06]} 23. Qe6 {[%emt 0:00:32]} Qc7 {[%emt 0:01:31]} 24. Qxg6 {[%emt 0:01:36]} Rf6 {[%emt 0:08:08]} 25. Qh7 {[%emt 0:00:23]} Kf7 {[%emt 0:00:12]} 26. Rg1 {[%emt 0:00:55]} b4 {[%emt 0:02:47]} 27. Rxg7+ {[%emt 0:00:43]} Ke8 {[%emt 0:01:54]} 28. Rhxg8+ 1-0

[Event "Athens of East Open 2019"]
[Site "Madurai"]
[Date "2019.08.11"]
[Round "5.4"]
[White "Anupam M Sreekumar"]
[Black "Hiridik Rajendran"]
[Result "1/2-1/2"]
[ECO "A04"]
[WhiteElo "1245"]
[BlackElo "1565"]
[Annotator "NA"]
[PlyCount "126"]
[EventDate "2019.08.10"]
[EventType "swiss"]
[EventCountry "IND"]
[SourceTitle "playchess.com"]
[Source "ChessBase"]
[SourceQuality "1"]
[TimeControl "3600+30"]

1. Nf3 {[%emt 0:00:00]} c5 {[%emt 0:00:00]} 2. g3 {[%emt 0:00:00]} g6 {[%emt 0:00:02]} 3. Bg2 {[%emt 0:00:14]} Bg7 {[%emt 0:00:16]} 4. O-O {[%emt 0:00:06]} Nf6 {[%emt 0:00:08]} 5. d3 {[%emt 0:00:31]} O-O {[%emt 0:00:17]} 6. Nbd2 {[%emt 0:00:20]} Nc6 {[%emt 0:00:18]} 7. e4 {[%emt 0:00:27]} d6 {[%emt 0:00:12]} 8. a4 {[%emt 0:00:21]} Bg4 {[%emt 0:00:20]} 9. h3 {[%emt 0:00:15]} Bd7 {[%emt 0:00:19]} 10. Nc4 {[%emt 0:00:20]} Qc7 {[%emt 0:02:44]} 11. Ne3 {[%emt 0:01:20]} Rad8 {[%emt 0:03:05]} 12. Kh2 {[%emt 0:01:36]} Bc8 {[%emt 0:01:20]} 13. Qe2 {[%emt 0:03:37]} Rfe8 {[%emt 0:01:11]} 14. c3 {[%emt 0:02:13]} d5 {[%emt 0:00:34]} 15. exd5 {[%emt 0:03:17]} Nxd5 {[%emt 0:00:11]} 16. Nxd5 {[%emt 0:01:16]} Rxd5 {[%emt 0:00:10]} 17. Nd2 {[%emt 0:03:40]} Rdd8 {[%emt 0:00:54]} 18. Nc4 {[%emt 0:01:56]} Bf5 {[%emt 0:02:01]} 19. Be4 {[%emt 0:01:46]} Qd7 {[%emt 0:00:50]} 20. Bxf5 {[%emt 0:03:25]} Qxf5 {[%emt 0:00:17]} 21. Rd1 Ne5 {[%emt 0:08:50]} 22. Nxe5 {[%emt 0:04:55]} Bxe5 {[%emt 0:00:24]} 23. Be3 {[%emt 0:01:26]} Bf6 {[%emt 0:06:22]} 24. d4 {[%emt 0:04:14]} cxd4 {[%emt 0:00:20]} 25. Bxd4 {[%emt 0:00:17]} Bxd4 {[%emt 0:00:13]} 26. Rxd4 {[%emt 0:00:38]} Rxd4 {[%emt 0:00:36]} 27. cxd4 {[%emt 0:00:08]} Rc8 {[%emt 0:10:53]} 28. Rd1 {[%emt 0:02:43]} Rc2 {[%emt 0:00:16]} 29. Rd2 {[%emt 0:00:32]} Rc7 {[%emt 0:06:19]} 30. Qe5 {[%emt 0:02:57]} Qd7 {[%emt 0:00:43]} 31. d5 {[%emt 0:01:39]} Qd6 {[%emt 0:02:15]} 32. Qd4 {[%emt 0:01:49]} b6 {[%emt 0:00:28]} 33. b4 {[%emt 0:01:43]} Rd7 {[%emt 0:01:19]} 34. Qe4 {[%emt 0:02:37]} f6 {[%emt 0:07:14]} 35. Re2 {[%emt 0:03:18]} Kf8 {[%emt 0:02:53]} 36. Qh4 {[%emt 0:02:11]} Kg7 {[%emt 0:00:16]} 37. Qe4 {[%emt 0:00:12]} Kf8 {[%emt 0:00:28]} 38. Qh4 {[%emt 0:00:07]} Kg7 {[%emt 0:00:07]} 39. Qe4 {[%emt 0:00:07]} Kf8 {[%emt 0:01:11]} 40. Qh4 Kg8 {[%emt 0:06:50]} 41. Qe4 {[%emt 0:01:17]} Kg7 {[%emt 0:00:19]} 42. Qc4 {[%emt 0:01:48]} Kf7 {[%emt 0:00:37]} 43. Rd2 {[%emt 0:01:41]} Qc7 {[%emt 0:00:41]} 44. Qe4 {[%emt 0:01:20]} Rd6 {[%emt 0:00:12]} 45. Rc2 {[%emt 0:01:08]} Qd7 46. Rc6 {[%emt 0:03:13]} e6 {[%emt 0:03:56]} 47. Qc2 {[%emt 0:03:31]} Qe7 {[%emt 0:00:50]} 48. dxe6+ {[%emt 0:06:12]} Qxe6 {[%emt 0:00:14]} 49. Rc8 {[%emt 0:01:07]} Kg7 {[%emt 0:01:12]} 50. Ra8 {[%emt 0:02:06]} Qf7 {[%emt 0:01:02]} 51. Qe4 {[%emt 0:00:46]} Rd7 {[%emt 0:00:28]} 52. Re8 {[%emt 0:00:38]} Rc7 {[%emt 0:00:12]} 53. a5 {[%emt 0:00:43]} bxa5 {[%emt 0:00:41]} 54. bxa5 {[%emt 0:00:02]} Rd7 {[%emt 0:01:12]} 55. a6 {[%emt 0:00:27]} Rc7 {[%emt 0:00:44]} 56. Rb8 {[%emt 0:00:49]} Re7 {[%emt 0:00:09]} 57. Qb4 {[%emt 0:00:31]} Rd7 {[%emt 0:00:12]} 58. Rb7 {[%emt 0:00:40]} Rc7 {[%emt 0:00:23]} 59. Rxc7 {[%emt 0:01:36]} Qxc7 {[%emt 0:00:06]} 60. Qb7 {[%emt 0:00:03]} Qf7 {[%emt 0:00:04]} 61. Kg2 {[%emt 0:00:14]} Kf8 {[%emt 0:00:15]} 62. Kf3 {[%emt 0:00:33]} Qe7 {[%emt 0:00:07]} 63. Kg2 {[%emt 0:00:41]} Kf7 {[%emt 0:00:26]} 1/2-1/2

[Event "Athens of East Open 2019"]
[Site "Madurai"]
[Date "2019.08.11"]
[Round "6.1"]
[White "Phani Kanuri"]
[Black "Ragesh Sarma.M"]
[Result "0-1"]
[ECO "B28"]
[WhiteElo "1471"]
[BlackElo "1583"]
[Annotator "NA"]
[PlyCount "66"]
[EventDate "2019.08.10"]
[EventType "swiss"]
[EventCountry "IND"]
[SourceTitle "playchess.com"]
[Source "ChessBase"]
[SourceQuality "1"]
[TimeControl "3600+30"]

1. e4 {[%emt 0:00:00]} c5 {[%emt 0:00:00]} 2. Nf3 {[%emt 0:00:00]} a6 {[%emt 0:00:00]} 3. g3 {[%emt 0:00:00]} e6 {[%emt 0:01:01]} 4. d3 {[%emt 0:00:00]} d6 {[%emt 0:00:45]} 5. Bg2 {[%emt 0:00:00]} Be7 {[%emt 0:00:26]} 6. O-O {[%emt 0:00:11]} Nf6 {[%emt 0:00:37]} 7. Nbd2 {[%emt 0:00:51]} O-O {[%emt 0:00:16]} 8. Re1 Nc6 {[%emt 0:08:31]} 9. c3 {[%emt 0:02:13]} Qc7 {[%emt 0:00:19]} 10. Nf1 {[%emt 0:01:11]} b5 {[%emt 0:01:17]} 11. h4 Bb7 {[%emt 0:01:12]} 12. Bg5 {[%emt 0:03:08]} Rfe8 {[%emt 0:05:16]} 13. N1h2 {[%emt 0:00:44]} Nd7 {[%emt 0:05:13]} 14. Bh3 {[%emt 0:02:09]} Nb6 15. Bf4 {[%emt 0:01:35]} Qd8 {[%emt 0:01:39]} 16. Qd2 {[%emt 0:00:57]} d5 {[%emt 0:01:36]} 17. e5 {[%emt 0:00:41]} d4 {[%emt 0:01:05]} 18. Rad1 {[%emt 0:00:38]} Nd5 {[%emt 0:02:26]} 19. Ng5 {[%emt 0:01:46]} Nxf4 {[%emt 0:06:36]} 20. Qxf4 {[%emt 0:00:20]} Bxg5 {[%emt 0:00:45]} 21. hxg5 {[%emt 0:01:10]} Qd5 {[%emt 0:01:22]} 22. Bg2 Qxa2 {[%emt 0:01:15]} 23. Rd2 {[%emt 0:01:06]} dxc3 {[%emt 0:01:11]} 24. bxc3 {[%emt 0:00:02]} Qa5 {[%emt 0:00:01]} 25. Rc1 {[%emt 0:00:41]} Qc7 {[%emt 0:04:48]} 26. Ng4 Red8 {[%emt 0:10:53]} 27. Be4 {[%emt 0:00:58]} Ne7 28. Bxb7 {[%emt 0:16:37]} Qxb7 {[%emt 0:02:38]} 29. Nf6+ {[%emt 0:00:07]} gxf6 {[%emt 0:02:36]} 30. gxf6 {[%emt 0:00:01]} Nf5 {[%emt 0:00:01]} 31. g4 Kh8 {[%emt 0:00:37]} 32. gxf5 {[%emt 0:00:29]} Rg8+ {[%emt 0:00:04]} 33. Kf1 {[%emt 0:00:04]} Qh1+ {[%emt 0:00:29]} 0-1

[Event "Athens of East Open 2019"]
[Site "Madurai"]
[Date "2019.08.11"]
[Round "6.2"]
[White "Rajat Yadav"]
[Black "Adithya Ramesh"]
[Result "1/2-1/2"]
[ECO "D02"]
[WhiteElo "1455"]
[BlackElo "1579"]
[Annotator "NA"]
[PlyCount "98"]
[EventDate "2019.08.10"]
[EventType "swiss"]
[EventCountry "IND"]
[SourceTitle "playchess.com"]
[Source "ChessBase"]
[SourceQuality "1"]
[TimeControl "3600+30"]

1. Nf3 {[%emt 0:00:00]} d5 {[%emt 0:00:00]} 2. d4 {[%emt 0:00:00]} Nf6 {[%emt 0:00:00]} 3. Bf4 {[%emt 0:00:47]} e6 {[%emt 0:00:00]} 4. e3 {[%emt 0:00:09]} Bd6 {[%emt 0:00:37]} 5. Bg3 {[%emt 0:00:16]} O-O {[%emt 0:00:26]} 6. Bd3 {[%emt 0:00:16]} b6 {[%emt 0:00:22]} 7. Nbd2 {[%emt 0:00:24]} c5 {[%emt 0:00:33]} 8. c3 {[%emt 0:00:08]} Bb7 {[%emt 0:00:25]} 9. O-O {[%emt 0:03:01]} Bxg3 {[%emt 0:00:39]} 10. hxg3 Nbd7 {[%emt 0:01:43]} 11. Ne5 {[%emt 0:05:51]} Nxe5 {[%emt 0:04:34]} 12. dxe5 {[%emt 0:00:06]} Ne4 {[%emt 0:00:04]} 13. Qc2 {[%emt 0:03:32]} Nxd2 {[%emt 0:00:35]} 14. Qxd2 {[%emt 0:00:28]} Qg5 {[%emt 0:00:42]} 15. f4 {[%emt 0:00:29]} Qe7 {[%emt 0:07:00]} 16. Qc2 {[%emt 0:06:10]} g6 {[%emt 0:00:54]} 17. Rae1 {[%emt 0:04:52]} Rfd8 {[%emt 0:00:23]} 18. Qf2 {[%emt 0:05:03]} h5 {[%emt 0:05:45]} 19. g4 {[%emt 0:01:32]} hxg4 {[%emt 0:00:27]} 20. Qg3 {[%emt 0:00:18]} d4 {[%emt 0:02:16]} 21. cxd4 {[%emt 0:01:51]} cxd4 {[%emt 0:00:42]} 22. e4 {[%emt 0:00:08]} Kg7 {[%emt 0:05:40]} 23. Qxg4 {[%emt 0:03:26]} Rh8 {[%emt 0:01:59]} 24. Kf2 {[%emt 0:10:12]} Qh4+ {[%emt 0:02:00]} 25. Qxh4 {[%emt 0:00:21]} Rxh4 {[%emt 0:00:07]} 26. Kg3 {[%emt 0:00:12]} Rhh8 {[%emt 0:00:31]} 27. Rc1 {[%emt 0:00:13]} Rac8 {[%emt 0:00:11]} 28. Kg4 {[%emt 0:05:32]} Rhd8 {[%emt 0:05:12]} 29. Kg5 {[%emt 0:00:56]} Rh8 {[%emt 0:01:50]} 30. Rh1 {[%emt 0:02:16]} Rxh1 {[%emt 0:02:07]} 31. Rxh1 {[%emt 0:00:04]} Rc5 {[%emt 0:00:27]} 32. Kg4 {[%emt 0:01:09]} Bc6 {[%emt 0:00:36]} 33. Rd1 {[%emt 0:01:28]} Bb5 {[%emt 0:02:12]} 34. Bxb5 {[%emt 0:01:35]} Rxb5 {[%emt 0:00:12]} 35. Rd2 {[%emt 0:00:06]} Kf8 {[%emt 0:06:35]} 36. Kf3 {[%emt 0:00:11]} Ke7 {[%emt 0:00:46]} 37. Ke2 {[%emt 0:00:11]} g5 {[%emt 0:01:27]} 38. g3 {[%emt 0:00:26]} f6 {[%emt 0:01:16]} 39. exf6+ {[%emt 0:00:54]} Kxf6 {[%emt 0:00:49]} 40. Kd3 {[%emt 0:00:33]} gxf4 {[%emt 0:01:41]} 41. gxf4 {[%emt 0:00:07]} e5 {[%emt 0:00:25]} 42. fxe5+ {[%emt 0:00:36]} Kxe5 {[%emt 0:01:10]} 43. Rf2 {[%emt 0:01:01]} Rc5 {[%emt 0:00:59]} 44. Rf8 {[%emt 0:02:10]} Rc1 {[%emt 0:04:11]} 45. Rf5+ {[%emt 0:01:30]} Ke6 {[%emt 0:00:52]} 46. Kxd4 {[%emt 0:00:08]} Rd1+ {[%emt 0:00:44]} 47. Kc4 {[%emt 0:03:59]} Rc1+ {[%emt 0:01:51]} 48. Kb5 {[%emt 0:00:55]} Rc2 {[%emt 0:00:10]} 49. b4 Rxa2 1/2-1/2